bitfinex-derivatives/quotes_BTCF0:USTF0_20250318
["timestamp","ask_amount","ask_price","bid_price","bid_amount"]
[1742319064617,0.2170403,81622.0,81621.0,0.53944656]
[1742319064819,0.0945,81622.0,81621.0,0.62934656]
[1742319065032,0.0945,81622.0,81621.0,0.71764656]
[1742319065739,0.32890216,81625.0,81624.0,0.122535]
[1742319065940,0.45143566,81625.0,81624.0,0.483335]
[1742319066135,0.45143566,81625.0,81624.0,0.575335]
[1742319066339,0.56013566,81625.0,81624.0,0.575335]
[1742319066535,0.56013566,81625.0,81624.0,0.4528]
[1742319066739,0.56013566,81625.0,81624.0,0.3608]
[1742319067045,0.122538,81622.0,81621.0,0.001]
[1742319067530,0.303038,81622.0,81621.0,0.001]
[1742319068145,0.122547,81616.0,81615.0,0.1225479]
[1742319068640,0.1753,81616.0,81615.0,0.3034479]
[1742319068943,0.210447,81616.0,81615.0,0.3034479]
[1742319069141,0.209447,81616.0,81615.0,0.3034479]
[1742319069640,0.1225288,81629.0,81623.0,0.1838032]
[1742319069949,0.22260217,81625.0,81624.0,0.872815]
[1742319070239,0.34513567,81625.0,81624.0,0.872815]
[1742319070444,0.22260217,81625.0,81624.0,0.872815]
[1742319071231,0.34513567,81625.0,81624.0,0.872815]
[1742319071945,0.1225335,81625.0,81624.0,0.872815]
[1742319073133,0.36532886,81630.0,81628.0,0.122529]
[1742319073341,0.1837834,81633.0,81632.0,0.1225215]
[1742319073540,0.1837834,81633.0,81632.0,0.48588]
[1742319073846,0.3635834,81633.0,81632.0,0.48588]
[1742319074232,0.3635834,81633.0,81632.0,0.73159384]
[1742319074939,0.1798,81633.0,81632.0,0.82609384]
[1742319075242,0.06143909,81641.0,81634.0,0.12252]
[1742319075551,0.52421817,81635.0,81634.0,0.12252]
[1742319075848,0.52421817,81635.0,81634.0,0.30922]
[1742319076350,0.70401817,81635.0,81634.0,0.30922]
[1742319076544,0.70501817,81635.0,81634.0,0.12252]
[1742319076849,0.70501817,81635.0,81634.0,0.24756]
[1742319077050,0.70501817,81635.0,81634.0,0.43416]
[1742319077548,0.70501817,81635.0,81634.0,0.33966]
[1742319077846,0.70501817,81635.0,81634.0,0.12504]
[1742319078146,0.1225215,81633.0,81632.0,0.39179084]
[1742319078443,0.1225215,81633.0,81632.0,0.48584]
[1742319078746,0.3019215,81633.0,81632.0,0.48584]
[1742319079347,0.122532,81626.0,81625.0,0.11017391]
[1742319079549,0.1225335,81625.0,81624.0,0.00018379]
[1742319079739,0.3851335,81625.0,81624.0,0.00018379]
[1742319081248,0.2997335,81625.0,81624.0,0.00018379]
[1742319081448,0.3928335,81625.0,81624.0,0.00018379]
[1742319082048,0.3928335,81625.0,81624.0,5.569e-05]
[1742319082550,0.122538,81622.0,81621.0,0.05612069]
[1742319082946,0.305738,81622.0,81621.0,0.05612069]
[1742319083345,0.305738,81622.0,81621.0,0.23402069]
[1742319083544,0.305738,81622.0,81621.0,0.26428032]
[1742319083750,0.305738,81622.0,81621.0,0.38681982]
[1742319083751,0.1832,81622.0,81621.0,0.38681982]
[1742319083950,0.1225302,81628.0,81627.0,0.0612652]
[1742319084251,0.1815,81628.0,81627.0,0.4220652]
[1742319084436,0.0612616,81632.0,81631.0,0.1837829]
[1742319084636,0.0909,81633.0,81632.0,0.122523]
[1742319085148,0.2134215,81633.0,81632.0,0.215923]
[1742319085653,0.3040215,81633.0,81632.0,0.215923]
[1742319086357,0.3060215,81633.0,81632.0,0.215923]
[1742319086958,0.122523,81632.0,81631.0,0.12504]
[1742319087251,0.3060215,81633.0,81629.0,0.4833263]
[1742319087252,0.122526,81630.0,81629.0,0.4833263]
[1742319087446,0.122526,81630.0,81629.0,0.6083663]
[1742319087646,0.210326,81630.0,81629.0,0.6083663]
[1742319087847,0.210326,81630.0,81629.0,0.48584]
[1742319088047,0.302726,81630.0,81629.0,0.48584]
[1742319088659,0.302726,81630.0,81629.0,0.12504]
[1742319088957,0.1225395,81621.0,81620.0,0.3608]
[1742319089161,0.1225395,81621.0,81620.0,0.483341]
[1742319089650,0.3031395,81621.0,81620.0,0.483341]
[1742319090556,0.3031395,81621.0,81620.0,0.576741]
[1742319090758,0.3031395,81621.0,81620.0,0.483341]
[1742319090953,0.3031395,81621.0,81620.0,0.39155417]
[1742319091347,0.3031395,81621.0,81620.0,0.39255417]
[1742319091550,0.3031395,81621.0,81620.0,0.51509517]
[1742319095056,0.3031395,81621.0,81620.0,0.60789517]
[1742319095559,0.1225155,81637.0,81632.0,0.0612613]
[1742319095761,0.12252,81634.0,81633.0,0.57864]
[1742319095952,0.12252,81634.0,81633.0,0.48584]
[1742319096260,0.21282,81634.0,81633.0,0.48584]
[1742319096765,0.30622,81634.0,81633.0,0.48584]
[1742319097062,0.30622,81634.0,81633.0,0.6083615]
[1742319098567,0.30922,81634.0,81633.0,0.6083615]
[1742319098766,0.30922,81634.0,81633.0,0.5393981]
[1742319099262,0.30922,81634.0,81633.0,0.3608]
[1742319099565,0.30922,81634.0,81633.0,0.34791319]
[1742319100167,0.30922,81634.0,81633.0,0.47043469]
[1742319100354,0.30922,81634.0,81633.0,0.55583469]
[1742319101866,0.30922,81634.0,81633.0,0.64113469]
[1742319102263,0.003,81634.0,81633.0,0.64113469]
[1742319102466,0.36462133,81648.0,81633.0,0.64113469]
[1742319102467,0.36462133,81648.0,81640.0,0.122511]
[1742319102659,0.1225014,81647.0,81640.0,1.498311]
[1742319102859,0.093,81647.0,81640.0,1.669011]
[1742319103068,0.093,81647.0,81646.0,0.122502]
[1742319103469,0.093,81647.0,81646.0,0.383502]
[1742319103673,0.11280864,81652.0,81651.0,0.1224945]
[1742319103867,0.11280864,81652.0,81651.0,0.4832945]
[1742319104067,0.1865,81661.0,81660.0,0.122481]
[1742319104267,0.40169967,81664.0,81663.0,0.1224765]
[1742319104464,0.40169967,81664.0,81663.0,1.3732765]
[1742319104662,0.40169967,81664.0,81663.0,1.5439765]
[1742319104865,0.0612291,81676.0,81663.0,1.5439765]
[1742319104866,0.0612243,81682.0,81667.0,0.0612352]
[1742319105064,0.125,81697.0,81672.0,0.483263]
[1742319105065,0.1836,81681.0,81672.0,0.483263]
[1742319105266,0.122453,81679.0,81672.0,0.483263]
[1742319105462,0.1836,81681.0,81677.0,0.1224555]
[1742319105669,0.0901,81681.0,81677.0,0.6082555]
[1742319105860,0.44476317,81678.0,81677.0,0.6082555]
[1742319106259,0.44476317,81678.0,81677.0,0.6962555]
[1742319106675,0.44976317,81678.0,81677.0,0.6962555]
[1742319106871,0.005,81678.0,81677.0,0.6962555]
[1742319107173,0.127454,81678.0,81677.0,0.6962555]
[1742319107376,0.122454,81678.0,81677.0,0.6962555]
[1742319107559,0.127454,81678.0,81677.0,0.6962555]
[1742319108782,0.132454,81678.0,81677.0,0.6972555]
[1742319109664,0.01,81678.0,81677.0,0.6972555]
[1742319109869,0.132454,81678.0,81677.0,0.5748]
[1742319110064,0.132454,81678.0,81677.0,0.4868]
[1742319110270,0.132454,81678.0,81677.0,0.001]
[1742319111461,0.122466,81670.0,81669.0,0.00018367]
[1742319112374,0.807866,81670.0,81669.0,7e-08]
[1742319112575,0.942926,81670.0,81669.0,7e-08]
[1742319112769,0.932826,81670.0,81669.0,7e-08]
[1742319113266,0.1225005,81647.0,81646.0,0.88964]
[1742319113696,0.1225035,81645.0,81644.0,0.03046759]
[1742319113974,0.122508,81642.0,81641.0,0.1225088]
[1742319114173,0.121508,81642.0,81641.0,0.1225088]
[1742319114567,0.1225095,81641.0,81640.0,0.11017391]
[1742319114876,0.3027095,81641.0,81640.0,0.11954985]
[1742319115071,0.3017095,81641.0,81640.0,0.11954985]
[1742319115275,0.3017095,81641.0,81640.0,0.15044801]
[1742319115579,0.3017095,81641.0,81640.0,0.11954985]
[1742319115774,0.2987095,81641.0,81640.0,0.11954985]
[1742319115970,0.2987095,81641.0,81640.0,0.04004062]
[1742319116167,0.1225155,81637.0,81636.0,0.48576]
[1742319117271,0.1225155,81637.0,81636.0,0.608277]
[1742319117468,0.1225155,81637.0,81636.0,0.63887194]
[1742319117679,0.3037155,81637.0,81636.0,0.63887194]
[1742319118178,0.3037155,81637.0,81636.0,0.81537194]
[1742319118479,0.3037155,81637.0,81636.0,0.69285494]
[1742319119278,0.1822,81637.0,81636.0,0.46393992]
[1742319119469,0.001,81637.0,81636.0,0.46393992]
[1742319119777,0.1235155,81637.0,81636.0,0.46393992]
[1742319119976,0.001,81637.0,81636.0,0.46393992]
[1742319120178,0.0871,81646.0,81643.0,0.0612532]
[1742319120377,0.209602,81646.0,81645.0,0.4833035]
[1742319120581,0.209602,81646.0,81645.0,0.3608]
[1742319120779,0.303502,81646.0,81645.0,0.5384]
[1742319121373,0.303502,81646.0,81645.0,0.6609035]
[1742319121680,0.306502,81646.0,81645.0,0.5384]
[1742319122076,0.306502,81646.0,81645.0,0.6609035]
[1742319122479,0.308502,81646.0,81645.0,0.48576]
[1742319122984,0.308502,81646.0,81645.0,0.3608]
[1742319123771,0.122511,81640.0,81639.0,0.12496]
[1742319124284,0.1225155,81637.0,81636.0,0.00936798]
[1742319124578,0.304711,81640.0,81633.0,0.00018367]
[1742319124579,0.12252,81634.0,81633.0,0.00018367]
[1742319124877,0.12252,81634.0,81633.0,0.0092289]
[1742319125074,0.12252,81634.0,81633.0,0.00018367]
[1742319125269,0.12252,81634.0,81633.0,0.14931141]
[1742319125476,0.12252,81634.0,81633.0,0.00018367]
[1742319125477,0.30892,81634.0,81633.0,0.00018367]
[1742319126270,0.30992,81634.0,81633.0,0.02634897]
[1742319126470,0.30992,81634.0,81633.0,0.12270517]
[1742319127080,0.1874,81634.0,81633.0,0.28357263]
[1742319127383,0.0952,81634.0,81633.0,0.37517263]
[1742319127581,0.22072,81634.0,81633.0,0.46827263]
[1742319127898,0.31162,81634.0,81633.0,0.46827263]
[1742319128379,0.31062,81634.0,81633.0,0.46827263]
[1742319129070,0.31162,81634.0,81633.0,0.46827263]
[1742319129779,0.31162,81634.0,81633.0,0.34575113]
[1742319130181,0.31162,81634.0,81633.0,0.16105113]
[1742319131282,0.31162,81634.0,81633.0,0.28357263]
[1742319131484,0.31162,81634.0,81633.0,0.13434868]
[1742319131783,0.31162,81634.0,81633.0,0.00018367]
[1742319131987,0.31162,81634.0,81615.0,0.3608]
[1742319131988,0.1225395,81621.0,81620.0,0.12496]
[1742319132374,0.1225395,81621.0,81620.0,0.02648729]
[1742319132375,0.3050395,81621.0,81620.0,0.02648729]
[1742319132585,0.1225485,81615.0,81614.0,1.01484]
[1742319132886,0.1225485,81615.0,81614.0,0.88988]
[1742319133083,0.3050485,81615.0,81614.0,0.88988]
[1742319133479,0.3050485,81615.0,81606.0,0.00018379]
[1742319133480,0.1225605,81607.0,81606.0,0.00018379]
[1742319133680,0.1225605,81607.0,81606.0,0.14990395]
[1742319133892,0.1225605,81607.0,81606.0,0.66424579]
[1742319133893,0.3028605,81607.0,81606.0,0.66424579]
[1742319134479,0.3018605,81607.0,81606.0,0.67348896]
[1742319134682,0.3018605,81607.0,81606.0,0.69975709]
[1742319135091,0.3028605,81607.0,81606.0,0.69975709]
[1742319135290,0.3028605,81607.0,81606.0,0.70075709]
[1742319135984,0.3028605,81607.0,81606.0,0.21739509]
[1742319136203,0.3028605,81607.0,81595.0,0.0612886]
[1742319136204,0.30626,81607.0,81575.0,1.2508]
[1742319136381,0.061281,81606.0,81590.0,0.3608]
[1742319136585,0.1838704,81596.0,81595.0,0.1225739]
[1742319137296,0.301574,81598.0,81597.0,0.1225755]
[1742319137481,0.122577,81596.0,81595.0,0.36694271]
[1742319137686,0.123577,81596.0,81595.0,0.13405421]
[1742319138085,0.302577,81596.0,81595.0,0.00909421]
[1742319138381,0.001,81596.0,81595.0,0.1225785]
[1742319138591,0.001,81596.0,81595.0,0.2995785]
[1742319139197,0.002,81596.0,81595.0,0.2995785]
[1742319139690,0.002,81596.0,81595.0,0.30882759]
[1742319140694,0.1225596,81608.0,81603.0,0.1225665]
[1742319140695,0.0928,81607.0,81603.0,0.1225665]
[1742319140880,0.0928,81607.0,81603.0,0.6083665]
[1742319141085,0.0928,81607.0,81603.0,0.7902665]
[1742319141789,0.00118379,81604.0,81603.0,0.7902665]
[1742319142200,0.12374879,81604.0,81603.0,0.7902665]
[1742319142388,0.12474879,81604.0,81603.0,0.7902665]
[1742319142897,0.00218379,81604.0,81603.0,0.7902665]
[1742319143989,0.12474879,81604.0,81603.0,0.7902665]
[1742319144298,0.00218379,81604.0,81603.0,0.7902665]
[1742319144490,0.09508379,81604.0,81603.0,0.7902665]
[1742319144883,0.21764879,81604.0,81603.0,0.7902665]
[1742319145399,0.30504879,81604.0,81603.0,0.7902665]
[1742319146196,0.18248379,81604.0,81603.0,0.7902665]
[1742319146992,0.00218379,81604.0,81603.0,0.7902665]
[1742319148296,0.09208379,81604.0,81603.0,0.7902665]
[1742319149002,0.21464879,81604.0,81603.0,0.7902665]
[1742319149499,0.30794879,81604.0,81603.0,0.7902665]
[1742319150200,0.06127,81621.0,81615.0,0.0612742]
[1742319150392,0.1832,81616.0,81615.0,0.1838227]
[1742319150798,0.305747,81616.0,81614.0,0.0858]
[1742319151002,0.12255,81614.0,81613.0,0.125]
[1742319151393,0.30975,81614.0,81613.0,0.125]
[1742319151900,0.30975,81614.0,81613.0,0.15192302]
[1742319153488,0.30975,81614.0,81613.0,0.02692302]
[1742319153692,0.1205515,81613.0,81612.0,0.4833529]
[1742319154095,0.3044515,81613.0,81612.0,0.4833529]
[1742319154295,0.1839,81613.0,81612.0,0.5105151]
[1742319154494,0.3064515,81613.0,81612.0,0.5994151]
[1742319154693,0.3064515,81613.0,81612.0,0.3879622]
[1742319154900,0.3064515,81613.0,81612.0,0.0271622]
[1742319155104,0.3064515,81613.0,81611.0,0.1225544]
[1742319155105,0.122553,81612.0,81611.0,0.1225544]
[1742319155301,0.121553,81612.0,81611.0,0.4833544]
[1742319155492,0.301753,81612.0,81611.0,0.4833544]
[1742319156494,0.301753,81612.0,81611.0,0.5763544]
[1742319157402,0.302753,81612.0,81611.0,0.60242316]
[1742319158093,0.302753,81612.0,81611.0,0.47986876]
[1742319158290,0.302753,81612.0,81611.0,0.50942326]
[1742319159296,0.302753,81612.0,81611.0,0.38686876]
[1742319160608,0.302753,81612.0,81611.0,0.50942326]
[1742319161203,0.302753,81612.0,81611.0,0.38686876]
[1742319161998,0.302753,81612.0,81611.0,0.50942326]
[1742319162811,0.302753,81612.0,81611.0,0.38686876]
[1742319163811,0.122562,81606.0,81605.0,0.00018379]
[1742319164198,0.299462,81606.0,81605.0,0.00018379]
[1742319164612,0.299462,81606.0,81605.0,0.12274729]
[1742319164810,0.299462,81606.0,81605.0,0.3300857]
[1742319165609,0.1769,81606.0,81605.0,0.3300857]
[1742319165909,0.0896,81606.0,81605.0,0.3300857]
[1742319166317,0.212162,81606.0,81605.0,0.3300857]
[1742319166613,0.212162,81606.0,81605.0,0.0263222]
[1742319166818,0.122568,81602.0,81601.0,0.3608]
[1742319167308,0.303268,81602.0,81601.0,0.3608]
[1742319167500,0.303268,81602.0,81601.0,0.29180759]
[1742319167903,0.303268,81602.0,81595.0,0.1754]
[1742319167904,0.1225695,81601.0,81600.0,0.02710086]
[1742319168103,0.0612876,81598.0,81592.0,0.3608]
[1742319168313,0.1225815,81593.0,81592.0,0.12276679]
[1742319168716,0.3032815,81593.0,81592.0,0.00018379]
[1742319169015,0.3949815,81593.0,81592.0,0.02700513]
[1742319169213,0.3949815,81593.0,81592.0,0.00018379]
[1742319169609,0.3949815,81593.0,81592.0,0.02737145]
[1742319169806,0.3949815,81593.0,81592.0,0.00018379]
[1742319170313,0.3949815,81593.0,81592.0,0.02713883]
[1742319173813,0.3032815,81593.0,81592.0,0.02713883]
[1742319174019,0.3032815,81593.0,81592.0,0.51052183]
[1742319174409,0.3062815,81593.0,81592.0,0.02713883]
[1742319177023,0.1225891,81588.0,81587.0,0.3017]
[1742319177425,0.3055891,81588.0,81587.0,0.4242906]
[1742319177624,0.3055891,81588.0,81587.0,0.3017]
[1742319177811,0.3055891,81588.0,81587.0,0.20294182]
[1742319178010,0.3055891,81588.0,81566.0,0.3608]
[1742319178011,0.1225996,81581.0,81566.0,0.3608]
[1742319178318,0.3608,81576.0,81553.0,0.0613197]
[1742319178528,0.1226402,81554.0,81553.0,0.07043616]
[1742319178710,0.422111,81567.0,81553.0,0.18481646]
[1742319179028,0.122632,81560.0,81559.0,0.1226296]
[1742319179215,0.183959,81558.0,81557.0,0.1226338]
[1742319179411,0.1839572,81557.0,81556.0,0.1226357]
[1742319179611,0.0613185,81557.0,81556.0,0.1226357]
[1742319179809,0.1839502,81559.0,81558.0,0.1226342]
[1742319180213,0.1226402,81554.0,81553.0,0.03583696]
[1742319180409,0.1226402,81554.0,81553.0,0.1226417]
[1742319180623,0.1226402,81554.0,81551.0,0.21925786]
[1742319180624,0.1226432,81552.0,81551.0,0.16035084]
[1742319180810,0.1226432,81552.0,81520.0,0.3608]
[1742319180811,0.1226627,81539.0,81536.0,0.02693444]
[1742319181015,0.0878,81551.0,81539.0,0.25656997]
[1742319181244,0.00018393,81547.0,81540.0,0.23277391]
[1742319181426,0.00018393,81547.0,81543.0,0.0613282]
[1742319181629,0.00018393,81547.0,81546.0,0.1226522]
[1742319182028,0.00018393,81547.0,81546.0,0.37922217]
[1742319182224,0.36098393,81547.0,81546.0,0.50422217]
[1742319182621,0.00018393,81547.0,81546.0,0.50422217]
[1742319182822,0.00018393,81547.0,81546.0,0.86502217]
[1742319184233,0.00218393,81547.0,81546.0,0.50422217]
[1742319185429,0.00218393,81547.0,81546.0,0.86502217]
[1742319186419,0.00218393,81547.0,81546.0,0.50422217]
[1742319186622,0.00218393,81547.0,81546.0,0.3702522]
[1742319186830,0.00218393,81547.0,81546.0,0.50422217]
[1742319187531,0.00018393,81547.0,81546.0,0.50422217]
[1742319187721,0.00218393,81547.0,81546.0,0.50422217]
[1742319188749,0.18098393,81547.0,81546.0,0.50422217]
[1742319190021,0.17898393,81547.0,81546.0,0.50422217]
[1742319190338,0.00218393,81547.0,81546.0,0.50422217]
[1742319191624,0.0903,81555.0,81554.0,0.1226402]
[1742319191923,0.0903,81555.0,81554.0,0.3702802]
[1742319192126,0.0903,81555.0,81554.0,0.50425017]
[1742319192532,0.2129387,81555.0,81554.0,0.50425017]
[1742319193929,0.2129387,81555.0,81554.0,0.25900997]
[1742319194130,0.2129387,81555.0,81554.0,0.38165017]
[1742319194330,0.2139387,81555.0,81554.0,0.25900997]
[1742319194520,0.1226507,81547.0,81546.0,0.00018393]
[1742319194724,0.3608,81549.0,81548.0,0.1226492]
[1742319195029,0.6573477,81549.0,81548.0,0.1226]
[1742319195236,0.1226492,81548.0,81546.0,0.00018393]
[1742319195537,0.1226507,81547.0,81546.0,0.12283463]
[1742319195728,0.2965507,81547.0,81546.0,0.12283463]
[1742319195922,0.2965507,81547.0,81546.0,0.00018393]
[1742319196520,0.7453507,81547.0,81546.0,0.00018393]
[1742319197137,0.3845507,81547.0,81546.0,0.00018393]
[1742319197636,0.3885507,81547.0,81546.0,0.00018393]
[1742319197835,0.7493507,81547.0,81546.0,0.00018393]
[1742319198238,0.9194507,81547.0,81546.0,3e-08]
[1742319198439,0.1226733,81532.0,81531.0,0.89052]
[1742319198623,0.0613359,81533.0,81511.0,0.3608]
[1742319198624,0.1226898,81521.0,81519.0,0.3608]
[1742319198834,0.1226973,81516.0,81515.0,0.8908]
[1742319199022,0.1226973,81516.0,81515.0,1.11196997]
[1742319199342,0.1226973,81516.0,81508.0,0.00932646]
[1742319199343,0.1227079,81509.0,81508.0,0.00932646]
[1742319199523,0.1227079,81509.0,81508.0,0.0843]
[1742319199831,0.3025079,81509.0,81508.0,0.34086997]
[1742319200036,0.3025079,81509.0,81508.0,0.00921234]
[1742319200234,0.1227169,81503.0,81502.0,0.0872]
[1742319200442,0.1227169,81503.0,81502.0,0.21224]
[1742319200637,0.1227169,81503.0,81502.0,0.46880997]
[1742319200937,0.3063169,81503.0,81502.0,0.29943485]
[1742319201138,0.3063169,81503.0,81502.0,0.29020005]
[1742319201443,0.1227199,81501.0,81500.0,0.105]
[1742319201935,0.0181,81494.0,81475.0,0.3608]
[1742319202125,0.3608,81492.0,81480.0,0.11017391]
[1742319202326,0.3074355,81491.0,81490.0,0.1227365]
[1742319202724,0.3074355,81491.0,81490.0,0.25656997]
[1742319202930,0.3074355,81491.0,81490.0,0.43356997]
[1742319203131,0.3074355,81491.0,81490.0,0.55864997]
[1742319203540,0.1847,81491.0,81490.0,0.68138647]
[1742319203838,0.1227335,81492.0,81491.0,0.0613668]
[1742319204039,0.1227335,81492.0,81491.0,0.25656997]
[1742319204240,0.1227335,81492.0,81491.0,0.13396997]
[1742319204435,0.3035335,81492.0,81491.0,0.13396997]
[1742319204642,0.3035335,81492.0,81491.0,0.25656997]
[1742319204844,0.00018404,81494.0,81491.0,0.25656997]
[1742319205140,0.3608,81529.0,81491.0,0.25656997]
[1742319205141,0.0613449,81521.0,81518.0,0.061347]
[1742319205332,0.00189287,81528.0,81527.0,0.1226808]
[1742319205645,0.1226783,81529.0,81528.0,0.1226761]
[1742319205827,0.0613375,81531.0,81527.0,1.01664]
[1742319205828,0.1226793,81528.0,81527.0,1.1393208]
[1742319206028,0.0613483,81517.0,81510.0,0.89116]
[1742319206231,0.1227034,81512.0,81511.0,0.25964997]
[1742319206443,0.1226988,81515.0,81514.0,0.1226996]
[1742319206631,0.1840489,81515.0,81514.0,0.15575493]
[1742319206829,0.1840489,81515.0,81514.0,0.25968997]
[1742319207037,0.2785489,81515.0,81514.0,0.25968997]
[1742319207340,0.2785489,81515.0,81514.0,0.13396997]
[1742319207643,0.2785489,81515.0,81511.0,0.10254953]
[1742319207644,0.1227124,81506.0,81494.0,0.89116]
[1742319208146,0.1227124,81506.0,81495.0,0.12592]
[1742319208446,0.2172124,81506.0,81498.0,0.00915546]
[1742319208643,0.3028124,81506.0,81498.0,0.00915546]
[1742319208942,0.3028124,81506.0,81505.0,0.13415401]
[1742319209331,0.3028124,81506.0,81505.0,0.00018404]
[1742319209737,0.122729,81495.0,81488.0,0.12608]
[1742319209944,0.122729,81495.0,81494.0,1.02512997]
[1742319209945,0.483529,81495.0,81494.0,1.02512997]
[1742319210442,0.483529,81495.0,81494.0,1.14786047]
[1742319210643,0.483529,81495.0,81494.0,1.11932997]
[1742319210837,0.569029,81495.0,81494.0,1.11932997]
[1742319211846,0.570029,81495.0,81494.0,1.24206047]
[1742319212040,0.570029,81495.0,81494.0,1.11932997]
[1742319212241,0.570029,81495.0,81494.0,1.02512997]
[1742319213643,0.1227531,81479.0,81478.0,0.89128]
[1742319213844,0.1227531,81479.0,81478.0,0.90040231]
[1742319214132,0.1227531,81479.0,81478.0,1.03437228]
[1742319214741,0.1227531,81479.0,81478.0,0.89128]
[1742319215248,0.1227531,81479.0,81466.0,0.0892]
[1742319215249,0.0613953,81455.0,81452.0,0.89136]
[1742319215549,0.1227922,81453.0,81452.0,0.89136]
[1742319215847,0.1227922,81453.0,81452.0,1.05725511]
[1742319216145,0.1227922,81453.0,81452.0,1.06843138]
[1742319216446,0.2163922,81453.0,81452.0,1.19122508]
[1742319216846,0.2163922,81453.0,81452.0,1.06843138]
[1742319217044,0.2163922,81453.0,81452.0,1.0343594]
[1742319217550,0.1228164,81437.0,81436.0,1.25232]
[1742319218145,0.1228164,81437.0,81436.0,1.50910787]
[1742319218351,0.00018416,81445.0,81444.0,0.1228058]
[1742319218352,0.12298956,81445.0,81444.0,0.1228058]
[1742319218759,0.1228133,81439.0,81422.0,0.89152]
[1742319218941,0.0614061,81441.0,81440.0,0.1228083]
[1742319219139,0.122808,81443.0,81442.0,0.1228073]
[1742319219339,0.1228149,81438.0,81437.0,0.0614075]
[1742319219539,0.1228164,81437.0,81436.0,0.00910588]
[1742319219735,0.1228224,81433.0,81432.0,0.12656]
[1742319219953,0.1228284,81429.0,81422.0,0.89152]
[1742319220158,0.4523,81428.0,81407.0,0.89168]
[1742319220450,0.1228586,81409.0,81408.0,0.12672]
[1742319220651,0.0614284,81411.0,81408.0,0.22176999]
[1742319220949,0.1821,81419.0,81408.0,0.16034019]
[1742319221157,0.1228516,81414.0,81413.0,0.1228526]
[1742319221341,0.1821,81419.0,81407.0,0.89168]
[1742319221342,0.1228601,81408.0,81407.0,0.89168]
[1742319221541,0.1228662,81404.0,81399.0,0.483673]
[1742319221746,0.061423,81418.0,81406.0,0.1228631]
[1742319222044,0.3608,81431.0,81419.0,0.1228435]
[1742319222250,0.149218,81424.0,81419.0,0.1228435]
[1742319222444,0.2106367,81424.0,81419.0,0.1228435]
[1742319222648,0.00018416,81426.0,81419.0,0.1228435]
[1742319223050,0.1228435,81419.0,81418.0,0.0876]
[1742319223641,0.0614209,81421.0,81418.0,0.1490218]
[1742319223849,0.0614193,81423.0,81422.0,0.122839]
[1742319224255,0.1228435,81420.0,81419.0,0.1228424]
[1742319224750,0.1228435,81419.0,81418.0,0.210445]
[1742319225756,0.0614187,81423.0,81422.0,0.122839]
[1742319226055,0.00018416,81426.0,81425.0,0.1228345]
[1742319226855,0.12301716,81426.0,81425.0,0.1228345]
[1742319227052,0.00018416,81426.0,81425.0,0.1228345]
[1742319227355,0.1228185,81436.0,81435.0,0.1228179]
[1742319227649,0.1782,81437.0,81422.0,0.3608]
[1742319227949,0.1228375,81423.0,81422.0,0.4836369]
[1742319228156,0.1228375,81423.0,81422.0,0.6148769]
[1742319228354,0.1228375,81423.0,81422.0,0.49204]
[1742319228554,0.1811,81427.0,81422.0,0.49204]
[1742319228761,0.06159706,81431.0,81427.0,0.0614154]
[1742319228942,0.12301086,81431.0,81430.0,0.1228269]
[1742319229148,0.0614157,81428.0,81425.0,0.0614166]
[1742319229452,0.1228375,81424.0,81423.0,0.1228364]
[1742319229639,0.1228375,81424.0,81423.0,0.2541164]
[1742319230039,0.1228375,81424.0,81423.0,0.2541964]
[1742319230244,0.1842527,81426.0,81425.0,0.1228345]
[1742319230446,0.0614167,81426.0,81425.0,0.1228345]
[1742319231147,0.0614167,81426.0,81422.0,0.3608]
[1742319231148,0.1228314,81427.0,81426.0,0.0614163]
[1742319231854,0.2102314,81427.0,81426.0,0.0614163]
[1742319232059,0.13132,81449.0,81430.0,0.1228269]
[1742319232255,0.2395068,81439.0,81430.0,0.4836269]
[1742319232454,0.0614112,81433.0,81430.0,0.4836269]
[1742319232656,0.061409,81436.0,81430.0,0.4836269]
[1742319232957,0.12300956,81431.0,81430.0,0.4836269]
[1742319233147,0.00018416,81431.0,81430.0,0.4836269]
[1742319233750,0.1228068,81444.0,81443.0,0.1228073]
[1742319233952,0.1228103,81441.0,81440.0,0.2541711]
[1742319234351,0.2976103,81441.0,81440.0,0.2541711]
[1742319234755,0.2976103,81441.0,81440.0,0.13136]
[1742319235463,0.2976103,81441.0,81432.0,0.00018416]
[1742319235464,0.1228224,81433.0,81432.0,0.00018416]
[1742319235647,0.4836224,81433.0,81432.0,0.00018416]
[1742319235852,0.6655224,81433.0,81432.0,0.00018416]
[1742319237753,0.6655224,81433.0,81432.0,0.12300806]
[1742319237952,0.3047224,81433.0,81432.0,0.12300806]
[1742319238262,0.2112224,81433.0,81432.0,0.35160806]
[1742319238467,0.2112224,81433.0,81432.0,0.22878416]
[1742319238762,0.6688224,81433.0,81432.0,0.24378416]
[1742319238949,0.6688224,81433.0,81432.0,0.01518416]
[1742319239150,0.6678224,81433.0,81432.0,0.01518416]
[1742319239454,0.6678224,81433.0,81432.0,0.01618416]
[1742319240658,0.6638224,81433.0,81432.0,0.01618416]
[1742319240861,0.6658224,81433.0,81432.0,0.01618416]
[1742319241279,0.3050224,81433.0,81432.0,0.13900806]
[1742319241464,0.003,81433.0,81432.0,0.13800806]
[1742319241763,0.004,81433.0,81432.0,0.22940806]
[1742319241956,0.0903,81460.0,81432.0,0.34538416]
[1742319242154,0.122775,81466.0,81448.0,0.3608]
[1742319242353,0.1227682,81472.0,81466.0,0.0613863]
[1742319242657,0.00916852,81474.0,81467.0,0.3454511]
[1742319242658,0.1227696,81468.0,81467.0,0.3454511]
[1742319243151,0.0613737,81483.0,81475.0,0.1227591]
[1742319243356,0.0613751,81481.0,81480.0,0.1227515]
[1742319243562,0.00018416,81484.0,81483.0,0.122747]
[1742319243765,0.12292966,81484.0,81483.0,0.254507]
[1742319243969,0.12292966,81484.0,81483.0,0.351107]
[1742319245057,0.12392966,81484.0,81483.0,0.351107]
[1742319245367,0.00418416,81484.0,81483.0,0.351107]
[1742319245559,0.3608,81503.0,81493.0,0.122732]
[1742319245759,0.2161274,81496.0,81495.0,0.122729]
[1742319245960,0.0934,81496.0,81495.0,0.122729]
[1742319246359,0.13164,81519.0,81506.0,0.1840636]
[1742319246561,0.0613546,81509.0,81508.0,0.1227064]
[1742319246759,0.1840655,81509.0,81508.0,0.1227064]
[1742319247058,0.1227154,81504.0,81503.0,0.3156735]
[1742319247569,0.1227154,81504.0,81503.0,0.1316]
[1742319248059,0.4835154,81504.0,81503.0,0.1316]
[1742319248253,0.1227199,81501.0,81500.0,0.00018404]
[1742319249168,0.1227199,81501.0,81500.0,0.12290544]